Cogmind - Beta 17 @@@ ROGUE MODE // 2026.08.19 @ 11:18:21 Player: Leumast Result: Self-destructed Performance ------------- Evolutions (2) 1000 Regions Visited (7) 1400 Robots Destroyed (69) 345 Value Destroyed (1630) 1630 Prototype IDs (30) 600 Alien Tech Used (0) 0 Bonus (600) 600 TOTAL SCORE: 5575 Bonus ------- High Alert Combat Kills 75 Follower Combat Kills 238 Aligned with FarCom 300 Friendly Fire -13 Cogmind --------- Core Integrity 483/550 Matter 6/300 Energy 160/160 System Corruption 0% Temperature Cool (0) Movement Flying (34) Location -8/Materials Parts ------- > --- POWER (1) -------- Light Nuclear Core > --- PROPULSION (4) --- Flight Unit Improved Flight Unit Improved Flight Unit > --- UTILITY (4) ------ Transport Network Coupler Hacking Suite Hacking Suite Hacking Suite > --- WEAPON (2) ------- Assault Cannon Datajack > --- INVENTORY (5) ---- Light Nuclear Core Flight Unit Structural Scanner Improved Terrain Scanner Missile Launcher Peak State ------------ > --- POWER ------------ Light Nuclear Core > --- PROPULSION ------- Light Treads Flight Unit Improved Flight Unit Improved Flight Unit > --- UTILITY ---------- Improved Heat Sink Large Storage Unit Transport Network Coupler Hacking Suite > --- WEAPON ----------- Flak Cannon Flak Cannon > --- INVENTORY -------- Light Nuclear Core Light Treads Light Treads Improved Treads Hacking Suite Hacking Suite AWS/Gauss Flak Cannon Rocket Launcher Missile Launcher Improved Datajack [Rating: 29] Favorites ----------- Power Improved Ion Engine Engine Improved Ion Engine Power Core Light Nuclear Core Propulsion Light Treads Treads Light Treads Hover Unit Airjet Flight Unit Improved Flight Unit Utility Transport Network Coupler Device Improved Heat Sink Storage Large Storage Unit Processor Transport Network Coupler Hackware Hacking Suite Weapon Assault Rifle Energy Gun Small Laser Ballistic Gun Assault Rifle Ballistic Cannon Flak Cannon Launcher Rocket Launcher Special Weapon Mining Laser Special Melee Weapon Datajack Build | -11 -10 -10 -9 -9 -9 -8 -8 ------- Run | Yrd Mat Min Mat Min Exi Min Mat Slots Evolved 4 | . . . 2 . . . 2 Power . | . . . . . . . . Propulsion 2 | . . . 1 . . . 1 Utility 2 | . . . 1 . . . 1 Weapon . | . . . . . . . . Parts Attached 54 | 7 8 . 19 2 1 4 13 Power 7 | 1 2 . 2 . . 1 1 Engine 6 | 1 2 . 2 . . 1 . Core 1 | . . . . . . . 1 Reactor . | . . . . . . . . Propulsion 18 | 2 1 . 7 1 . 1 6 Treads 13 | 2 1 . 7 1 . 1 1 Leg . | . . . . . . . . Wheel . | . . . . . . . . Hover 1 | . . . . . . . 1 Flight 4 | . . . . . . . 4 Utility 10 | 1 3 . 1 1 . 1 3 Device 2 | . . . 1 1 . . . Storage 3 | 1 1 . . . . 1 . Processor 2 | . 2 . . . . . . Hackware 3 | . . . . . . . 3 Protection . | . . . . . . . . Artifact . | . . . . . . . . Weapon 19 | 3 2 . 9 . 1 1 3 Energy Gun 1 | 1 . . . . . . . Energy Cannon . | . . . . . . . . Ballistic Gun 8 | 2 2 . 4 . . . . Ballistic Cannon 5 | . . . 3 . . 1 1 Launcher 2 | . . . 1 . . . 1 Special Weapon 1 | . . . 1 . . . . Impact Weapon . | . . . . . . . . Slashing Weapon . | . . . . . . . . Piercing Weapon . | . . . . . . . . Special Melee Weapon 2 | . . . . . 1 . 1 Unidentified Prototypes . | . . . . . . . . Parts Lost 13 | . 3 . 8 . . . 2 Power 2 | . 1 . 1 . . . . Propulsion 8 | . 1 . 6 . . . 1 Utility . | . . . . . . . . Weapon 3 | . 1 . 1 . . . 1 Highest Loss Streak 4 | . 1 . 4 . . . 1 To Critical Strikes . | . . . . . . . . Average Backups 12 | 3 10 15 14 14 14 13 6 Power 1 | . 1 2 1 2 2 1 1 Propulsion 3 | 1 2 4 4 3 3 3 1 Utility 3 | . 4 4 3 3 3 3 1 Weapon 3 | 1 2 5 3 4 6 4 2 Tool/Special . | . . . . . . . . Unused Backups 25 | . 6 . 12 1 1 . 5 Power 2 | . . . 1 . . . 1 Propulsion 7 | . 3 . 3 . . . 1 Utility 8 | . 2 . 3 1 . . 2 Weapon 8 | . 1 . 5 . 1 . 1 Tool/Special . | . . . . . . . . Average Slot Usage (%) 96 | . 97 100 95 100 92 100 96 Engine 11 | . 14 14 10 11 11 11 1 Treads 29 | . 27 28 29 33 33 33 6 Flight 1 | . . . . . . . 25 Device 7 | . . . 10 11 11 11 2 Storage 11 | . 14 14 11 11 11 11 2 Processor 11 | . 12 14 11 11 11 11 9 Energy Gun 1 | . 5 . . . . . . Ballistic Gun 11 | . 22 28 18 . 2 2 . Ballistic Cannon 6 | . . . 3 22 4 13 5 Special Melee Weapon 2 | . . . . . 8 6 6 Peak Build Rating 29 | 6 9 9 18 19 19 21 29 Average Rating 14 | 4 7 9 14 18 15 19 25 On Entrance 12 | . 6 9 9 18 19 17 21 Avg Prop Armor Cover (%) 7 | . . . . . . . 7 Naked Turns . | . . . . . . . . Heaviest Build 40 | 11 29 29 40 40 40 40 40 Greatest Support 83 | 40 40 40 63 60 60 60 83 Greatest Overweight (x) 2 | 2 1 . 1 . . . . Average Overweight (x) . | . . . . . . . . Largest Inventory Capacity 15 | 8 15 15 15 15 15 15 15 Average Capacity 14 | 7 14 15 15 15 15 15 7 Most Carried 15 | 6 15 15 15 15 15 15 15 Average Carried 13 | 3 10 15 14 14 14 14 6 Final Capacity 15 | 8 15 15 15 15 15 15 5 Final Carried 15 | 4 15 15 15 14 14 15 5 Class Distribution -------------------- 68% | Scavenger-Mutant 27% | Mutant Dominant Class ---------------- Mutant | -10/Materials Mutant | -10/Mines Scavenger-Mutant | -9/Materials Scavenger-Mutant | -9/Mines Scavenger-Mutant | -9/Exiles Scavenger-Mutant | -8/Mines Hacker-Mutant | -8/Materials Resources | -11 -10 -10 -9 -9 -9 -8 -8 ----------- Run | Yrd Mat Min Mat Min Exi Min Mat Matter Collected 1746 | 220 409 6 720 280 . 106 5 Remotely . | . . . . . . . . Salvage Created 1711 | . 512 . 930 213 . 39 17 Parts 135 | . 41 . 72 7 . 7 8 Haulers Intercepted 3 | . 2 . 1 . . . . Recyclers Shooed . | . . . . . . . . Parts Field Recycled . | . . . . . . . . Retrieved Matter . | . . . . . . . . Parts Self-Destructed . | . . . . . . . . Prevented . | . . . . . . . . Parts Restored . | . . . . . . . . Kills | -11 -10 -10 -9 -9 -9 -8 -8 ------- Run | Yrd Mat Min Mat Min Exi Min Mat Combat Hostiles Destroyed 52 | . 12 . 29 6 . 1 4 Guns 29 | . 12 . 17 . . . . Cannons 13 | . . . 6 6 . 1 . AOE 10 | . . . 6 . . . 4 Classes Destroyed 10 | . 5 . 3 1 . 1 . Worker 4 | . . . 2 . . 1 1 Builder 1 | . . . 1 . . . . Hauler 3 | . 2 . 1 . . . . Operator 5 | . 2 . 3 . . . . Watcher 4 | . 1 . 3 . . . . Swarmer 20 | . 6 . 10 . . . 4 Grunt 26 | . 6 . 15 5 . . . Duelist 1 | . . . . 1 . . . Sentry 4 | . . . 4 . . . . Hunter 1 | . . . . . . 1 . Best Kill Streak 7 | . 4 . 7 3 . 1 5 Combat Bots Only 6 | . 4 . 6 3 . 1 4 Max Kills in Single Turn 3 | . 2 . 2 1 . 1 3 Gunslinging . | . . . . . . . . Exploded 2 | . . . 2 . . . 2 Melee . | . . . . . . . . Uniques/NPCs Destroyed . | . . . . . . . . Combat | -11 -10 -10 -9 -9 -9 -8 -8 -------- Run | Yrd Mat Min Mat Min Exi Min Mat Hostile Shots Fired 326 | . 97 . 195 4 . 2 28 Missed 91 | . 22 . 54 1 . . 14 Hits 235 | . 75 . 141 3 . 2 14 Projectile 235 | . 75 . 141 3 . 2 14 Critical Strikes 3 | . 2 . 1 . . . . Damage Taken 2632 | . 767 . 1588 37 . 33 207 Core 377 | . 142 . 168 . . . 67 Absorbed by Shields . | . . . . . . . . Regen/Repaired (Parts) 95 | . . . 95 . . . . Core Remaining (%) 67 | 100 . 43 . . . 58 . Volleys Fired 188 | . 72 1 95 9 . 4 7 Largest 2 | . 2 2 2 2 . 2 1 Hottest 100 | . 60 40 100 74 . 74 33 Shots Fired 360 | . 139 2 186 18 . 8 7 Gun 284 | . 139 2 143 . . . . Cannon 65 | . . . 39 18 . 8 . Launcher 10 | . . . 3 . . . 7 Special 1 | . . . 1 . . . . Kinetic 308 | . 98 2 182 18 . 8 . Thermal 42 | . 41 . 1 . . . . Explosive 10 | . . . 3 . . . 7 Electromagnetic . | . . . . . . . . Robot Hit Streak 15 | . 15 4 8 7 . 5 2 Robot Miss Streak 6 | . 5 1 5 6 . 2 2 Penetration Max . | . . . . . . . . Secondary Targets 1 | . . . 1 . . . . Max Gunslinging Chain 1 | . . . 1 . . . . Shots Hit Robots 238 | . 87 1 125 13 3 5 4 Core Hits 139 | . 28 . 75 21 . 9 6 Critical Kills 1 | . . . 1 . . . . Critical Parts Destroyed 1 | . 1 . . . . . . Critical Strikes 2 | . 1 . 1 . . . . Destroy 2 | . 1 . 1 . . . . Melee Attacks 8 | . . . . . 3 . 5 Impact . | . . . . . . . . Slashing . | . . . . . . . . Piercing . | . . . . . . . . Sneak Attacks 4 | . . . . . 3 . 1 Combat Hostiles . | . . . . . . . . Follow-up Attacks . | . . . . . . . . Damage Inflicted 4130 | . 1098 27 2395 261 . 84 265 Guns 2477 | . 1098 27 1352 . . . . Cannons 954 | . . . 609 261 . 84 . Explosions 699 | . . . 434 . . . 265 Melee . | . . . . . . . . Ramming . | . . . . . . . . Kinetic 3166 | . 833 27 1961 261 . 84 . Thermal 265 | . 265 . . . . . . Explosive 699 | . . . 434 . . . 265 Electromagnetic . | . . . . . . . . Impact . | . . . . . . . . Slashing . | . . . . . . . . Piercing . | . . . . . . . . Highest Corruption . | . . . . . . . . Average Corruption . | . . . . . . . . Corruption Purged . | . . . . . . . . Corruption Blocked . | . . . . . . . . Overload Shots . | . . . . . . . . Overflow Damage 38 | . . . 18 . . . 20 Projectiles . | . . . . . . . . Explosions 38 | . . . 18 . . . 20 Melee . | . . . . . . . . Knockbacks 39 | . . . 24 14 . 1 . Impact . | . . . . . . . . Kinetic 36 | . . . 21 14 . 1 . Secondary 3 | . . . 3 . . . . Self-Inflicted Damage 66 | . . . 25 . . . 41 Shots 2 | . . . 1 . . . 1 Rammed . | . . . . . . . . Targets Rammed . | . . . . . . . . Kicked . | . . . . . . . . Crushed . | . . . . . . . . Highest Temperature 48 | . 48 . . . . . 6 Average Temperature 14 | . 14 . . . . . 4 Received Heat Transfer 936 | . 303 . 564 24 . . 45 Siege Activations . | . . . . . . . . Martial Activations . | . . . . . . . . Shielding Activations . | . . . . . . . . Robots Disrupted . | . . . . . . . . Combat Hostiles . | . . . . . . . . Robots Corrupted . | . . . . . . . . Combat Hostiles . | . . . . . . . . Parts Fried . | . . . . . . . . Impact Corruptions . | . . . . . . . . Robots Melted . | . . . . . . . . Combat Hostiles . | . . . . . . . . Parts Melted 1 | . . . . 1 . . . Heat Transferred 575 | . 575 . . . . . . Parts Sabotaged . | . . . . . . . . Parts Stolen . | . . . . . . . . Parts Stripped . | . . . . . . . . Power Chain Reactions . | . . . . . . . . Alert | -11 -10 -10 -9 -9 -9 -8 -8 ------- Run | Yrd Mat Min Mat Min Exi Min Mat Maximum Alert Level 2 | . . . 2 1 . . . Low Security (%) 83 | 100 100 100 70 19 . 100 100 Level 1 8 | . . . 4 80 . . . Level 2 7 | . . . 25 . . . . Level 3 . | . . . . . . . . Level 4 . | . . . . . . . . Level 5 . | . . . . . . . . High Security . | . . . . . . . . Max Security . | . . . . . . . . Peak Influence 538 | . 102 83 538 288 . 30 155 Initial 206 | . . . 27 206 . . . Average 87 | . 32 20 173 227 . 1 63 Influence Increases 2064 | . 431 93 1098 192 . 35 215 Destroy 0b10 Robot/C 1240 | . 240 60 680 160 . 20 80 Destroy 0b10 Robot/NC 85 | . 25 . 50 . . 5 5 Destroy Leader 304 | . 56 10 188 30 . 10 10 Allied During Kill 43 | . . 8 33 2 . . . Successful Hack 24 | . 18 . 6 . . . . Disable Machine 60 | . 15 15 15 . . . 15 Destroy Structure 83 | . 2 . 21 . . . 60 Lose Combat Pursuer 225 | . 75 . 105 . . . 45 Influence Decreases 1929 | . 431 20 641 542 180 35 80 Entered New Map 550 | . . . 46 324 180 . . Time Decay 1189 | . 401 20 475 198 . 35 60 Lost Part 130 | . 30 . 80 . . . 20 Lost Ally 60 | . . . 40 20 . . . Squads Dispatched 9 | . 2 . 5 . . . 2 Investigation 3 | . . . 1 . . . 2 Extermination . | . . . . . . . . Reinforcement 6 | . 2 . 4 . . . . Assault . | . . . . . . . . Garrison . | . . . . . . . . Intercept . | . . . . . . . . Searches Triggered . | . . . . . . . . Construction Impeded . | . . . . . . . . Haulers Reinforced . | . . . . . . . . Active Scanning Responses . | . . . . . . . . Cargo Convoy Interrupts . | . . . . . . . . Stealth | -11 -10 -10 -9 -9 -9 -8 -8 --------- Run | Yrd Mat Min Mat Min Exi Min Mat Distress Signals 6 | . 3 . 3 . . . . Communications Jammed . | . . . . . . . . Distress Signals . | . . . . . . . . Times Spotted 98 | . 30 1 49 5 . 1 12 Peak Tracking Total 9 | . 5 1 9 3 . . 8 Tactical Retreats 10 | . 4 . 4 . . . 2 Traps | -11 -10 -10 -9 -9 -9 -8 -8 ------- Run | Yrd Mat Min Mat Min Exi Min Mat Traps Triggered 3 | . . . 1 . . . 2 Indirectly . | . . . . . . . . Trap Hack Attempts . | . . . . . . . . Triggered . | . . . . . . . . Disarmed . | . . . . . . . . Reprogrammed . | . . . . . . . . Reused . | . . . . . . . . Traps Extracted . | . . . . . . . . Installed . | . . . . . . . . Triggered . | . . . . . . . . Machines | -11 -10 -10 -9 -9 -9 -8 -8 ---------- Run | Yrd Mat Min Mat Min Exi Min Mat Machines Disabled 4 | . 1 1 1 . . . 1 Max in Single Turn 1 | . 1 . 1 . . . 1 Machines Repaired . | . . . . . . . . Machines Dismantled . | . . . . . . . . Machines Sabotaged . | . . . . . . . . Overloaded Fab Kills . | . . . . . . . . Hacking | -11 -10 -10 -9 -9 -9 -8 -8 --------- Run | Yrd Mat Min Mat Min Exi Min Mat Machines Accessed 18 | . 5 . 8 . 4 . 1 Terminals 10 | . 4 . 5 . . . 1 Fabricators . | . . . . . . . . Repair Stations 1 | . . . 1 . . . . Recycling Units 2 | . 1 . 1 . . . . Scanalyzers 1 | . . . 1 . . . . Garrison Access . | . . . . . . . . Total Hacks 84 | . 15 . 24 . 43 . 2 Successful 62 | . 6 . 12 . 43 . 1 Failed 22 | . 9 . 12 . . . 1 Catastrophic 5 | . 4 . 1 . . . . Database Lockouts . | . . . . . . . . Manual 27 | . 13 . 13 . 1 . . Terminals 29 | . 13 . 14 . . . 2 Fabricators . | . . . . . . . . Repair Stations 3 | . . . 3 . . . . Recycling Units 6 | . 2 . 4 . . . . Scanalyzers 3 | . . . 3 . . . . Garrison Access . | . . . . . . . . Terminal Hacks 49 | . 3 . 2 . 43 . 1 Record 42 | . . . . . 42 . . Robot Analysis 1 | . 1 . . . . . . Prototype ID Bank 1 | . 1 . . . . . . Terminal Index 2 | . 1 . 1 . . . . Alert Level 1 | . . . 1 . . . . Hauler Manifests 1 | . . . . . . . 1 Proto ID Catalog 1 | . . . . . 1 . . Fabricator Hacks . | . . . . . . . . Repair Station Hacks 2 | . . . 2 . . . . Scan Component 1 | . . . 1 . . . . Repair 1 | . . . 1 . . . . Recycling Unit Hacks 6 | . 2 . 4 . . . . Process 1 | . . . 1 . . . . Report Inventory 3 | . 1 . 2 . . . . Retrieve Matter 1 | . . . 1 . . . . Retrieve Components 1 | . 1 . . . . . . Scanalyzer 3 | . . . 3 . . . . Insert Component 1 | . . . 1 . . . . Analyze 2 | . . . 2 . . . . Garrison Access Hacks . | . . . . . . . . Unauthorized Hacks 2 | . 1 . 1 . . . . Terminals 2 | . 1 . 1 . . . . Operators 2 | . 1 . 1 . . . . Fabricators . | . . . . . . . . Repair Stations . | . . . . . . . . Recycling Units . | . . . . . . . . Scanalyzers . | . . . . . . . . Garrison Access . | . . . . . . . . Data Cores Recovered . | . . . . . . . . Used . | . . . . . . . . Hacking Detections 13 | . 4 . 8 . . . 1 Full Trace Events 1 | . . . 1 . . . . Feedback Events . | . . . . . . . . Feedback Blocked . | . . . . . . . . Robot Schematics Acquired . | . . . . . . . . Robots Built . | . . . . . . . . Authchips . | . . . . . . . . Time . | . . . . . . . . Total Robot Build Rating . | . . . . . . . . Part Schematics Acquired . | . . . . . . . . Parts Built . | . . . . . . . . Authchips . | . . . . . . . . Time . | . . . . . . . . Total Part Build Rating . | . . . . . . . . Part Studies Acquired . | . . . . . . . . Parts Repaired 1 | . . . 1 . . . . Time 26 | . . . 26 . . . . Parts Recycled . | . . . . . . . . Recycled Matter 121 | . . . 121 . . . . Retrieved Matter 121 | . . . 121 . . . . Retrieved Components 3 | . 3 . . . . . . Parts Scanalyzed 1 | . . . 1 . . . . Part Schematics Acquired . | . . . . . . . . Parts Damaged . | . . . . . . . . Bothacking | -11 -10 -10 -9 -9 -9 -8 -8 ------------ Run | Yrd Mat Min Mat Min Exi Min Mat Used RIF Installer . | . . . . . . . . Robots Hacked 3 | . . . . . 2 . 1 Non-combat 3 | . . . . . 2 . 1 Combat . | . . . . . . . . Robot Hacks Applied 4 | . . . . . 3 . 1 parse_system 4 | . . . . . 3 . 1 Relay Couplers Released . | . . . . . . . . Fabnet Peak Effective % . | . . . . . . . . Robots Rewired . | . . . . . . . . Allies Hacked . | . . . . . . . . Hacks Repelled . | . . . . . . . . Allies | -11 -10 -10 -9 -9 -9 -8 -8 -------- Run | Yrd Mat Min Mat Min Exi Min Mat Total Allies 3 | . . 2 . 1 . . . Largest Group 2 | . . 2 2 1 . . . Highest-Rated Group 43 | . . 43 43 31 . . . Highest-Rated Ally 31 | . . 31 31 31 . . . Total Orders . | . . . . . . . . Ally Attacks 36 | . . 4 20 12 . . . Total Damage 629 | . . 62 335 232 . . . Kills 10 | . . 3 5 2 . . . Allies Corrupted . | . . . . . . . . Allies Melted . | . . . . . . . . Intel | -11 -10 -10 -9 -9 -9 -8 -8 ------- Run | Yrd Mat Min Mat Min Exi Min Mat Active Infowar (turns) 5040 | . 1113 101 1353 405 811 1012 245 T.N.C. 5040 | . 1113 101 1353 405 811 1012 245 Robot Analysis Total 1 | . 1 . . . . . . Derelict Logs Recovered . | . . . . . . . . Drone Launches . | . . . . . . . . Drone Recoveries . | . . . . . . . . Exploration | -11 -10 -10 -9 -9 -9 -8 -8 ------------- Run | Yrd Mat Min Mat Min Exi Min Mat Turns Passed 5213 | 76 1210 101 1353 405 811 1012 245 Spaces Moved 2771 | 47 562 62 585 214 501 458 342 Core 17 | 17 . . . . . . . Treads 2431 | 30 562 62 585 214 501 458 19 Legs . | . . . . . . . . Wheels . | . . . . . . . . Hover . | . . . . . . . . Flight 323 | . . . . . . . 323 Fastest Speed 31 | 50 160 160 160 160 160 160 31 Average Speed 145 | 128 162 160 160 160 160 160 39 Slowest Speed 240 | 160 240 160 240 160 160 160 160 Overloaded Moves . | . . . . . . . . Propulsion Burnouts . | . . . . . . . . Robots Hopped . | . . . . . . . . Potential Cave-ins . | . . . . . . . . Cave-ins Triggered . | . . . . . . . . Exploration Rate (%) 46 | 4 68 26 62 34 71 85 21 Regions Visited 7 Branch Regions 4 Pre-discovered Areas 1 | . . . . . 1 . . Known Exits Taken . | . . . . . . . . Unknown Exits Taken 7 | 1 1 1 1 1 1 1 . Scrap Searched 4 | . . 2 . 1 . 1 . Spaces Dug 1 | . . . 1 . . . . Terrain Destroyed 96 | . . . 20 . . . 76 Melee . | . . . . . . . . Projectile 1 | . . . 1 . . . . AOE 95 | . . . 19 . . . 76 Terrain Rammed . | . . . . . . . . Walls Destroyed . | . . . . . . . . Machines Disabled . | . . . . . . . . Actions | -11 -10 -10 -9 -9 -9 -8 -8 --------- Run | Yrd Mat Min Mat Min Exi Min Mat Total 3604 | 61 724 62 818 259 510 730 440 Wait 438 | . 47 . 66 32 1 251 41 Move 2764 | 46 561 61 584 213 500 457 342 Hop . | . . . . . . . . Pick Up 78 | 8 26 . 28 1 1 7 7 Fast Attach 7 | 2 . . 2 1 . . 2 Attach 24 | 4 4 . 10 1 1 1 3 Detach 2 | . . . . . 1 . 1 Swap 38 | 1 4 . 11 . 1 4 17 Drop 57 | . 10 . 22 2 2 6 15 Fire 188 | . 72 1 95 9 . 4 7 Melee 8 | . . . . . 3 . 5 Ram . | . . . . . . . . Kick . | . . . . . . . . Crush . | . . . . . . . . Escape Stasis . | . . . . . . . . Rewire . | . . . . . . . . Trap . | . . . . . . . . Miscellaneous . | . . . . . . . . Route ------- -11/Scrapyard -10/Materials (discovered 4 exits: *Mat x2 / [*Min] / [*Sub]) -10/Mines -9/Materials (discovered 3 exits: *Mat x2 / [*Min]) -9/Mines (discovered 2 exits: *Mat / *Exi) -9/Exiles -8/Mines -8/Materials History --------- Turn | Location | Event 6 | -11/Scrapyard | Discovered new exit (range 14) 77 | -11/Scrapyard | Entered Materials 78 | -10/Materials | Met a group of wandering Federalists 304 | -10/Materials | Build established: Mutant 337 | -10/Materials | Discovered new exit (range 8) 422 | -10/Materials | Discovered new exit (range 8) 649 | -10/Materials | Core integrity fell below 50% 880 | -10/Materials | Discovered new exit (range 15) 1005 | -10/Materials | Discovered new exit (range 16) 1287 | -10/Materials | Entered Mines 1367 | -10/Mines | Discovered new exit (range 10) 1388 | -10/Mines | Entered Materials 1388 | -9/Materials | Accompanied by 2 allies 1388 | -9/Materials | Evolved 2 slots: Propulsion x1, Utility x1 1393 | -9/Materials | Led the pair of lost Derelicts to an unsafe place 1470 | -9/Materials | Repaired Lgt. Treads 1714 | -9/Materials | Discovered new exit (range 12) 1744 | -9/Materials | Build established: Scavenger-Mutant 2245 | -9/Materials | Discovered new exit (range 15) 2436 | -9/Materials | Discovered new exit (range 8) 2530 | -9/Materials | Lost 4 parts (1p3n) 2741 | -9/Materials | Entered Mines 2744 | -9/Mines | Received a Mining Laser from a helpful Derelict 2910 | -9/Mines | Discovered new exit (range 9) 2944 | -9/Mines | Found a damaged Exp. Sensor Array with a note attached 3139 | -9/Mines | Deemed a non-threat by the Exiles lab entrance 3139 | -9/Mines | Discovered new exit (range 5) 3146 | -9/Mines | Entered Exiles 3186 | -9/Exiles | Met 8R-AWN 3217 | -9/Exiles | Met EX-HEX 3281 | -9/Exiles | Met EX-DEC 3297 | -9/Exiles | Learned location of Zion (-6) 3539 | -9/Exiles | Met EX-BIN 3563 | -9/Exiles | Aligned with FarCom system 3564 | -9/Exiles | Given EX-Vault access code 3780 | -9/Exiles | Opened EX-Vault 3795 | -9/Exiles | Found AWS/Gauss 3835 | -9/Exiles | Warned to stay clear of 0b10 Research branches 3939 | -9/Exiles | Discovered new exit (range 12) 3957 | -9/Exiles | Left Exiles lab with AWS/Gauss 3957 | -9/Exiles | Entered Mines 4069 | -8/Mines | Discovered new exit (range 9) 4969 | -8/Mines | Entered Materials 4969 | -8/Materials | Evolved 2 slots: Propulsion x1, Utility x1 5214 | -8/Materials | Self-destructed Last Messages --------------- 05119_ Acquired 5 matter. 05119_ Acquired Flight Unit. 05122_ U-05 Engineer builds a Wall. 05126_ Acquired Datajack. 05133_ U-05 Engineer lays Concrete. 05134_ The unstable cave ceiling collapses. 05134_ U-05 Engineer lays Concrete. 05153_ Slug penetrates Wall. 05161_ Dropped Rocket Launcher. 05161_ Acquired Imp. Terrain Scanner. 05172_ K-01 Serf cleans the Matter Pump. 05173_ Triggered Alarm Trap. 05173_ An alarm sounds. 05173_ ALERT: Alarm triggered, dispatching investigation squad. 05183_ Sneak attack on T-07 Excavator. 05183_ Jacked T-07 Excavator... >>parse_system Reading system data... 05212_ Jacked G-47 Trooper... 05213_ Flight Unit destroyed. Map ----- +----------------------------------------------------+ | ?????????????????????????????????????????????????? | | ?????????????????????????????????????????????????? | | ?????????????????????????????????????????????????? | | ?????????????????????????????????????????????????? | | ?????????????????????????????????????????????????? | | ?????????????????????????????????????????????????? | | ??????????????????????????????????????a??????????? | | ?????????????????????????????????????????????????? | | ?????????????????????????????????????????????????? | | ?????????????????????????????????????????????????? | | ?????????????????????????????a???????????????????? | | ?????????????????????????????????????????????????? | | ???????????????#+?????????#??????????????????????? | | ???????????????# ???????? #??????????????????????? | | ???????????????# ??????? #????????????s?????????? | | ???????????????# ?????? #??????????????????????? | | ??????????????## ##### ???????????????????????? | | ??????????????# ?????????????????????????? | | ??????????????# ???????????????????????????? | | ??????????????# ????????????????????w????????? | | ??????????????# #??????????????????????????????? | | ??????????????# #??????????????????????????????? | | ??????????????# ##########?????????????????????? | | ??????????????# # Y #?????????????????????? | | ??????????????# # """"" =#?????????????????????? | | ??????# ??????# #Y"""""@ #?????????????????????? | | ??????# ?????# # """"" g#?????????????????????? | | ??????# ##### # """""g #?????????????????????? | | ??????# h # """"" #?????????????????????? | | ??????+ # """"" #?????????????????????? | | ??????# / """"" #?????????????????????? | | ??????# """ # h #?????????????????????? | | ??????# """ ##########?????????????????????? | | ??????# """ ##? ?????????????????????? | | ????### # """ ?????????????????????? | | ??? # """ #????????????????????? | | ??? + """ #????????????????????? | | ??? " # #????????????????????? | | ????" T # """ #????????????????????? | | ????" " #?""" #????????????????????? | | ????" #?""" #???????+#???????????? | | ??? #?? ]#??????+ ???????????? | | ??? ##### ####+##?#???????# #???????????? | | ???? ????# #?????????# #???????????? | | ????? ?????# #?????????# #???????????? | | ??????????????# #?????????# #???????????? | | ??????????????##########/##????????# #???????????? | | ????????????????# ]#????????# #???????????? | | ????????????????# #????????# #???????????? | | ????????????????# #?????####+##########??? | +----------------------------------------------------+ Best States ------------- Heat Dissipation 45 Energy Generation 14 Energy Capacity 265 Matter Stores 300 Matter Capacity 300 Sight Range 16 Terrain Scan Density 10 Evasion (%) 63 Recoil Reduction 4 Offensive Hacking 30 Item Schematics ----------------- None Robot Schematics ------------------ None Fabricated ------------ Nothing Repaired ---------- Lgt. Treads | 32% | -9/Materials Studied --------- None Alien Tech Used ----------------- None Achievements -------------- Analysis Probe Bumper Bots Shopping List Sixth Sense True Hacker Challenges ------------ None Game ------ Seed PrecisionFieldCartridge Manual? 0 Play Time 01:55:03 Cumulative 14.9 hours Start 2026.08.15 @ 00:52:49 End 2026.08.19 @ 11:18:21 Sessions 3 Manual Loads 0 Difficulty Rogue Special Mode None Game No. 8 Rogue 8 Adventurer 0 Explorer 0 Win Type - Total 0 Types 0/0/0/0/0/0/0/0/0/0 Lore% 11 Gallery% 13 Achievement% 14 Wizard Run 0 Options --------- Layout 0 ASCII 0 Keyboard 0 Movement Mouse Keybinds 0 Fullscreen 1 Font 24/Smallcaps Map View 76x50 Zoom Use 0% Tactical HUD 1 Map Filters NONE Filters NONE Steam 1 RUN: 6f141552-9a30-4644-8a52-4f76cb24bd18